bitfinex-derivatives/quotes_BTCF0:USTF0_20251120
["timestamp","ask_amount","ask_price","bid_price","bid_amount"]
[1763679005653,0.04601267,88104.0,88103.0,0.3608]
[1763679006055,0.04601267,88104.0,88103.0,0.36299803]
[1763679006663,0.04601267,88104.0,88103.0,0.00319803]
[1763679007161,0.04601267,88104.0,88093.0,0.3608]
[1763679007162,0.04528,88094.0,88093.0,0.3608]
[1763679007365,0.04528,88094.0,88083.0,0.3608]
[1763679007366,0.04747803,88094.0,88083.0,0.3608]
[1763679007666,0.0674442,88094.0,88093.0,0.04331]
[1763679007859,0.0221642,88094.0,88093.0,0.04331]
[1763679008060,0.0628289,88094.0,88093.0,0.04331]
[1763679008258,0.0221642,88094.0,88093.0,0.04331]
[1763679008457,0.01996617,88094.0,88093.0,0.04331]
[1763679008767,0.0406647,88101.0,88100.0,0.04331]
[1763679008968,0.04286273,88101.0,88100.0,0.40411]
[1763679009168,0.00219803,88101.0,88100.0,0.40411]
[1763679009759,0.00202793,88101.0,88100.0,0.40411]
[1763679010064,0.08899392,88104.0,88103.0,0.04331]
[1763679010362,0.0406647,88108.0,88107.0,0.04331]
[1763679010554,0.04286273,88108.0,88107.0,0.0546734]
[1763679010959,0.06270247,88108.0,88107.0,0.0546734]
[1763679011159,0.15142777,88108.0,88107.0,0.0546734]
[1763679011359,0.04286273,88108.0,88107.0,0.0546734]
[1763679011661,0.00219803,88108.0,88107.0,0.0546734]
[1763679012168,0.00017021,88112.0,88111.0,0.0546729]
[1763679012367,0.00017021,88112.0,88111.0,0.41767093]
[1763679012967,0.01992161,88112.0,88111.0,0.41767093]
[1763679013171,0.00017021,88112.0,88111.0,0.41767093]
[1763679013574,0.0406647,88120.0,88119.0,0.0671519]
[1763679013877,0.0406647,88120.0,88119.0,0.43014993]
[1763679014069,0.06099655,88128.0,88124.0,0.0113612]
[1763679014373,0.00056257,88128.0,88127.0,0.40630803]
[1763679014573,0.06156756,88128.0,88127.0,0.40630803]
[1763679015074,0.00056257,88128.0,88127.0,0.41766883]
[1763679015572,0.02037815,88128.0,88127.0,0.41766883]
[1763679015760,0.06159372,88128.0,88127.0,0.41766883]
[1763679015959,0.00056257,88128.0,88127.0,0.41766883]
[1763679016367,0.06162412,88128.0,88127.0,0.41766883]
[1763679016566,0.00056257,88128.0,88127.0,0.41766883]
[1763679016769,0.02041438,88128.0,88127.0,0.41766883]
[1763679017275,0.08147593,88128.0,88127.0,0.41766883]
[1763679017872,0.10426593,88128.0,88127.0,0.41766883]
[1763679018175,0.06569438,88128.0,88127.0,0.41766883]
[1763679018576,0.06569438,88128.0,88127.0,0.40630803]
[1763679019079,0.12679649,88128.0,88127.0,0.40630803]
[1763679020370,0.14076649,88128.0,88127.0,0.40630803]
[1763679020875,0.14078368,88128.0,88127.0,0.40630803]
[1763679022075,0.07966438,88128.0,88127.0,0.40630803]
[1763679022375,0.1407867,88128.0,88127.0,0.40630803]
[1763679024572,0.07966438,88128.0,88127.0,0.36299803]
[1763679027975,0.07966438,88128.0,88127.0,0.40630803]
[1763679028375,0.07966438,88128.0,88127.0,0.36299803]
[1763679028777,0.08066438,88128.0,88127.0,0.36299803]
[1763679029075,0.04528,88128.0,88127.0,0.40630803]
[1763679029281,0.04528,88128.0,88127.0,0.04550803]
[1763679029476,0.04528,88127.0,88126.0,0.00028369]
[1763679030072,0.04528,88127.0,88126.0,0.00248172]
[1763679030475,0.04528,88127.0,88126.0,0.04655172]
[1763679030875,0.04528,88127.0,88126.0,0.00248172]
[1763679031774,0.04628,88127.0,88126.0,0.00248172]
[1763679031971,0.04628,88127.0,88126.0,0.00028369]
[1763679032779,0.04591,88120.0,88119.0,0.3608]
[1763679033086,0.04438,88119.0,88118.0,0.00017021]
[1763679034487,0.04438,88119.0,88118.0,0.04688021]
[1763679034781,0.02199,88119.0,88118.0,0.04907824]
[1763679035182,0.3608,88120.0,88119.0,0.04671]
[1763679035488,0.3608,88120.0,88119.0,0.04890803]
[1763679035874,0.10988,88127.0,88119.0,0.03705993]
[1763679036074,0.3608,88131.0,88128.0,0.0602]
[1763679036279,0.38279,88131.0,88130.0,0.04671]
[1763679036480,0.40518,88131.0,88130.0,0.04890803]
[1763679036681,0.04438,88131.0,88130.0,0.04890803]
[1763679036984,0.09272886,88136.0,88133.0,0.04671]
[1763679037183,0.09272886,88136.0,88135.0,0.04671]
[1763679037390,0.09272886,88136.0,88135.0,0.04890803]
[1763679037586,0.11471886,88136.0,88135.0,0.04890803]
[1763679037786,0.13710886,88136.0,88135.0,0.04890803]
[1763679037987,0.09272886,88136.0,88135.0,0.04890803]
[1763679038183,0.11067084,88136.0,88135.0,0.40970803]
[1763679040087,0.19231373,88136.0,88135.0,0.40970803]
[1763679040477,0.11067084,88136.0,88135.0,0.40970803]
[1763679042879,0.15505084,88136.0,88135.0,0.40970803]
[1763679045191,0.15505084,88136.0,88119.0,1.5]
[1763679045192,0.0129,88119.0,88102.0,0.3608]
[1763679045489,0.0258,88103.0,88102.0,0.40751]
[1763679045893,0.0258,88103.0,88102.0,0.40970803]
[1763679046279,0.10740047,88103.0,88102.0,0.40970803]
[1763679046899,0.3866,88103.0,88102.0,0.04890803]
[1763679047391,0.3876,88103.0,88102.0,0.04890803]
[1763679047594,0.3876,88103.0,88079.0,0.3608]
[1763679047595,0.0258,88087.0,88079.0,0.3608]
[1763679047781,0.3866,88087.0,88079.0,0.3608]
[1763679049483,0.3866,88087.0,88086.0,0.04919185]
[1763679050198,0.46800702,88087.0,88086.0,0.04919185]
[1763679050896,0.3866,88087.0,88086.0,0.04919185]
[1763679052504,0.3866,88087.0,88086.0,0.00248185]
[1763679053996,0.3866,88087.0,88086.0,0.04919185]
[1763679055002,0.3608,88087.0,88086.0,0.04919185]
[1763679055292,0.10996,88092.0,88091.0,0.04671]
[1763679055604,0.12286,88092.0,88091.0,0.04890803]
[1763679055794,0.12286,88092.0,88091.0,0.03411901]
[1763679056101,0.3608,88095.0,88094.0,0.0345751]
[1763679056307,0.3608,88095.0,88094.0,0.04890803]
[1763679059205,0.40518,88095.0,88094.0,0.04890803]
[1763679059409,0.38279,88095.0,88094.0,0.04890803]
[1763679059602,0.3608,88095.0,88094.0,0.04890803]
[1763679060209,0.42173214,88095.0,88094.0,0.04890803]
[1763679061204,0.38279,88095.0,88094.0,0.04890803]
[1763679061406,0.46611214,88095.0,88094.0,0.04890803]
[1763679061606,0.40518,88095.0,88094.0,0.04890803]
[1763679065205,0.40518,88095.0,88094.0,0.02540803]
[1763679065408,0.0459,88087.0,88086.0,0.04466382]
[1763679065599,0.0459,88087.0,88086.0,0.00028382]
[1763679065800,0.4067,88087.0,88086.0,0.00028382]
[1763679066006,0.51666,88087.0,88086.0,0.00028382]
[1763679066716,0.0459,88075.0,88074.0,0.05787]
[1763679066907,0.44731821,88075.0,88074.0,0.05787]
[1763679067215,0.44731821,88075.0,88074.0,0.06006803]
[1763679067216,0.4067,88075.0,88074.0,0.06006803]
[1763679068214,0.4067,88075.0,88074.0,0.06106803]
[1763679068711,0.4067,88075.0,88074.0,0.02612803]
[1763679069118,0.4067,88075.0,88074.0,0.02712803]
[1763679069521,0.49549491,88075.0,88074.0,0.00419803]
[1763679069707,0.49549491,88075.0,88074.0,0.002]
[1763679069908,0.60545491,88075.0,88074.0,0.002]
[1763679070618,0.60545491,88075.0,88074.0,0.04857803]
[1763679071118,0.49549491,88075.0,88074.0,0.002]
[1763679071318,0.57690193,88075.0,88074.0,0.001]
[1763679071508,0.57690193,88075.0,88074.0,0.002]
[1763679071709,0.57690193,88075.0,88074.0,0.001]
[1763679072017,0.0459,88058.0,88057.0,0.40518]
[1763679072209,0.0459,88058.0,88057.0,0.40737803]
[1763679072611,0.0459,88058.0,88057.0,0.36299803]
[1763679072807,0.11,88058.0,88049.0,0.32291759]
[1763679073010,0.3608,88050.0,88024.0,0.05946]
[1763679073216,0.3588,88031.0,88030.0,0.04438]
[1763679073411,0.46888,88031.0,88030.0,0.04657803]
[1763679074103,0.52993107,88031.0,88030.0,0.04657803]
[1763679074307,0.48681486,88031.0,88030.0,0.04657803]
[1763679074519,0.48681486,88031.0,88030.0,0.02293]
[1763679074520,0.48694682,88031.0,88030.0,0.02293]
[1763679074814,0.48681486,88031.0,88030.0,0.02512803]
[1763679075116,0.48681486,88031.0,88030.0,0.04657803]
[1763679075321,0.57930182,88031.0,88030.0,0.04657803]
[1763679075612,0.57930182,88031.0,88030.0,0.04757803]
[1763679075917,0.57943378,88031.0,88030.0,0.04538]
[1763679076214,0.57930182,88031.0,88024.0,0.05946]
[1763679076413,0.0610312,88025.0,88024.0,0.06165803]
[1763679076610,0.57930182,88031.0,88016.0,0.05946]
[1763679076812,0.3608,88019.0,88006.0,0.36108407]
[1763679077018,0.3608,88009.0,88006.0,0.0024821]
[1763679077219,0.00011279,88008.0,88006.0,0.3746585]
[1763679077522,0.00011279,88008.0,88007.0,0.04438]
[1763679077714,0.00011279,88008.0,88007.0,0.04657803]
[1763679078125,0.00011279,88008.0,88007.0,0.44657803]
[1763679078326,0.04069013,88016.0,88015.0,0.0557553]
[1763679078516,0.04069013,88016.0,88015.0,0.05795333]
[1763679078710,0.04288816,88016.0,88015.0,0.00073267]
[1763679078913,0.00219803,88016.0,88015.0,0.04511267]
[1763679079718,0.00219803,88016.0,88015.0,0.05748797]
[1763679081222,0.00219803,88016.0,88015.0,0.05648797]
[1763679081432,0.2848,88019.0,88018.0,0.0557549]
[1763679081620,0.01793486,88031.0,88030.0,0.0113734]
[1763679081813,0.04069013,88048.0,88046.0,0.0113713]
[1763679082118,0.03022164,88047.0,88046.0,0.01210397]
[1763679082419,0.01145803,88047.0,88046.0,0.01210397]
[1763679082724,0.03721,88056.0,88046.0,0.00073267]
[1763679082926,0.01627803,88056.0,88046.0,0.00173267]
[1763679083121,0.01627803,88056.0,88053.0,0.0113703]
[1763679083423,0.01627803,88056.0,88055.0,0.00073267]
[1763679083722,0.03478604,88056.0,88055.0,0.00073267]
[1763679083919,0.01627803,88056.0,88055.0,0.00073267]
[1763679084120,0.01408,88056.0,88055.0,0.00073267]
[1763679084317,0.00017041,88060.0,88055.0,0.40073267]
[1763679084617,0.01860146,88060.0,88059.0,0.0113696]
[1763679084824,0.00017041,88060.0,88059.0,0.01210227]
[1763679087319,0.00017041,88060.0,88059.0,0.12222227]
[1763679087720,0.01890851,88060.0,88059.0,0.12222227]
[1763679087919,0.01890851,88060.0,88059.0,0.12322227]
[1763679088519,0.01890851,88060.0,88059.0,0.12222227]
[1763679090026,0.02110654,88060.0,88059.0,0.01210227]
[1763679090219,0.04423654,88060.0,88059.0,0.01210227]
[1763679090414,0.06700654,88060.0,88059.0,0.01210227]
[1763679091020,0.06700654,88060.0,88059.0,0.00073267]
[1763679092529,0.27649775,88064.0,88059.0,0.04570267]
[1763679092827,0.05728,88060.0,88059.0,0.04570267]
[1763679093030,0.05728,88060.0,88059.0,0.00073267]
[1763679093725,0.07598934,88060.0,88059.0,0.00073267]
[1763679094627,0.05728,88053.0,88052.0,0.3608]
[1763679094819,0.05792296,88053.0,88052.0,0.36299803]
[1763679095834,0.11888635,88053.0,88052.0,0.36299803]
[1763679096330,0.11891769,88053.0,88052.0,0.38967803]
[1763679096531,0.05792296,88053.0,88052.0,0.38967803]
[1763679096922,0.05792296,88053.0,88052.0,0.36299803]
[1763679098431,0.05792296,88053.0,88052.0,0.00219803]
[1763679098639,0.05792296,88053.0,88052.0,0.02887803]
[1763679099033,0.05792296,88053.0,88043.0,0.02668]
[1763679099034,0.01678,88047.0,88043.0,0.02668]
[1763679099241,0.05728,88045.0,88044.0,0.00219803]
[1763679099532,0.05792296,88045.0,88044.0,0.04024953]
[1763679099725,0.05792296,88045.0,88044.0,0.05696803]
[1763679100034,0.11893686,88045.0,88044.0,0.05696803]
[1763679101225,0.05792296,88045.0,88044.0,0.05696803]
[1763679101640,0.05792296,88045.0,88044.0,0.00219803]
[1763679102039,0.05792296,88045.0,88033.0,0.11008]
[1763679102040,0.05728,88043.0,88033.0,0.11008]
[1763679102239,0.05947803,88043.0,88035.0,0.0113726]
[1763679102433,0.05947803,88043.0,88033.0,0.11008]
[1763679103732,0.05728,88034.0,88033.0,0.11008]
[1763679104037,0.05947803,88034.0,88033.0,0.16520979]
[1763679104436,0.05947803,88034.0,88033.0,0.13711979]
[1763679104641,0.05947803,88034.0,88033.0,0.00035979]
[1763679105634,0.05728,88026.0,88025.0,0.05494041]
[1763679105831,0.05947803,88026.0,88025.0,0.0553002]
[1763679108037,0.05947803,88026.0,88025.0,0.0563002]
[1763679108431,0.05947803,88026.0,88025.0,0.0015302]
[1763679111946,0.14088472,88026.0,88025.0,0.00019006]
[1763679112132,0.05947803,88026.0,88025.0,0.00019006]
[1763679114145,0.05947803,88026.0,88025.0,0.05496006]
[1763679114744,0.05947803,88026.0,88025.0,0.00019006]
[1763679114949,0.05947803,88026.0,88025.0,0.02687006]
[1763679115744,0.05947803,88026.0,88025.0,0.00019006]
[1763679116047,0.05947803,88026.0,88025.0,0.02687006]
[1763679118049,0.05947803,88026.0,88025.0,0.03824406]
[1763679118748,0.05947803,88026.0,88025.0,0.06633406]
[1763679119549,0.05947803,88026.0,88025.0,0.00019006]
[1763679120247,0.05947803,88026.0,88025.0,2.379e-05]
[1763679120936,0.05947803,88026.0,88025.0,0.05479379]
[1763679121845,0.05947803,88026.0,88025.0,0.02670379]
[1763679122251,0.14088472,88026.0,88025.0,0.02670379]
[1763679122848,0.08360472,88026.0,88025.0,2.379e-05]
[1763679123049,0.44440472,88026.0,88025.0,2.379e-05]
[1763679123247,0.36299803,88026.0,88025.0,2.379e-05]
[1763679126155,0.36299803,88026.0,88025.0,0.05692]
[1763679126351,0.41744803,88026.0,88025.0,0.05692]
[1763679127851,0.41744803,88026.0,88025.0,0.068294]
[1763679128655,0.01625,88025.0,88022.0,0.0682943]
[1763679128856,0.05664803,88023.0,88022.0,0.0682943]
[1763679129257,0.05664803,88023.0,88022.0,0.05692]
[1763679131749,0.05664803,88023.0,88022.0,0.05792]
[1763679132358,0.05664803,88023.0,88022.0,0.04312126]
[1763679134149,0.05664803,88023.0,88022.0,0.05449566]
[1763679135457,0.00219803,88023.0,88022.0,0.05449566]
[1763679135848,0.04367,88032.0,88031.0,0.04762]
[1763679136160,0.09248501,88033.0,88032.0,0.04762]
[1763679136550,0.3608,88045.0,88040.0,0.04762]
[1763679136551,0.10234799,88041.0,88040.0,0.04762]
[1763679136862,0.00219803,88041.0,88040.0,0.04762]
[1763679137062,0.05664803,88041.0,88040.0,0.04762]
[1763679137755,0.02908803,88041.0,88040.0,0.04762]
[1763679138065,0.05664803,88041.0,88040.0,0.04762]
[1763679138250,0.05664803,88041.0,88040.0,0.03282463]
[1763679139062,0.02908803,88041.0,88040.0,0.03282463]
[1763679139264,0.00219803,88041.0,88040.0,0.03282463]
[1763679139960,0.00017041,88042.0,88041.0,0.0293919]
[1763679141767,0.00017041,88042.0,88041.0,0.0303919]
[1763679142656,0.00017041,88042.0,88041.0,0.0313919]
[1763679143360,0.0409904,88042.0,88041.0,0.0313919]
[1763679143562,0.04099048,88042.0,88041.0,0.0313919]
[1763679143758,0.00017041,88042.0,88041.0,0.0313919]
[1763679144363,0.21641568,88051.0,88050.0,0.0113708]
[1763679144563,0.06129695,88051.0,88050.0,0.0113708]
[1763679144866,0.05445,88051.0,88050.0,0.0113708]
[1763679146857,0.02756,88053.0,88052.0,0.04494]
[1763679147057,0.20956873,88060.0,88059.0,0.0682896]
[1763679147261,0.05664803,88060.0,88059.0,0.0682896]
[1763679148163,0.04861414,88060.0,88059.0,0.0682896]
[1763679148366,0.02172414,88060.0,88059.0,0.0682896]
[1763679148567,0.02172414,88060.0,88059.0,0.06888959]
[1763679148568,0.07557414,88060.0,88059.0,0.06888959]
[1763679148753,0.09182414,88060.0,88059.0,0.06888959]
[1763679149160,0.07617414,88060.0,88059.0,0.06888959]
[1763679149769,0.09242414,88060.0,88059.0,0.06888959]
[1763679150468,0.07617414,88060.0,88059.0,0.06888959]
[1763679151055,0.01952611,88060.0,88059.0,0.06888959]
[1763679151262,0.07191,88067.0,88066.0,0.0659687]
[1763679151457,0.07410803,88067.0,88066.0,0.06656869]
[1763679151858,0.07410803,88067.0,88066.0,0.05519999]
[1763679153359,0.07355803,88067.0,88066.0,0.05519999]
[1763679153555,0.09251862,88067.0,88066.0,0.00059999]
[1763679153763,0.05396,88063.0,88062.0,0.10996]
[1763679153969,0.41695803,88063.0,88062.0,0.10996]
[1763679156569,0.05396,88056.0,88055.0,0.0381601]
[1763679156764,0.05615803,88056.0,88055.0,0.0381601]
[1763679157755,0.05615803,88056.0,88055.0,0.0113701]
[1763679159167,0.0157,88053.0,88051.0,0.0113701]
[1763679159368,0.05396,88049.0,88048.0,0.0654109]
[1763679159666,0.05615803,88049.0,88048.0,0.0654109]
[1763679159876,0.05615803,88049.0,88048.0,0.0381609]
[1763679160171,0.05615803,88049.0,88048.0,0.05404]
[1763679161572,0.05615803,88049.0,88046.0,0.10996]
[1763679161876,0.05615803,88049.0,88046.0,0.164]
[1763679161877,0.05396,88047.0,88046.0,0.164]
[1763679162170,0.05615803,88047.0,88046.0,0.164]
[1763679164177,0.05615803,88047.0,88046.0,0.165]
[1763679164478,0.05615803,88047.0,88046.0,0.13775]
[1763679164668,0.05615803,88047.0,88046.0,0.11196]
[1763679165072,0.05615803,88047.0,88046.0,0.13775]
[1763679165278,0.05615803,88047.0,88046.0,0.13875]
[1763679165476,0.05615803,88047.0,88046.0,0.11196]
[1763679165974,0.05396,88043.0,88042.0,0.00017041]
[1763679166172,0.05615803,88043.0,88042.0,0.00017041]
[1763679166568,0.05396,88032.0,88030.0,0.10992]
[1763679166771,0.05615803,88032.0,88031.0,0.38759]
[1763679166964,0.05615803,88032.0,88031.0,0.41484]
[1763679167181,0.1174754,88032.0,88031.0,0.41484]
[1763679167372,0.1174754,88032.0,88031.0,0.38759]
[1763679167673,0.14563324,88032.0,88031.0,0.3608]
[1763679168080,0.14563324,88032.0,88023.0,0.00017041]
[1763679168081,0.05396,88024.0,88023.0,0.05421041]
[1763679168371,0.05615803,88024.0,88023.0,0.05421041]
[1763679172081,0.02884803,88024.0,88023.0,0.05421041]
[1763679172286,0.00219803,88024.0,88023.0,0.05421041]
[1763679173285,0.3608,88028.0,88027.0,0.05404]
[1763679173476,0.36299803,88028.0,88027.0,0.0654137]
[1763679173884,0.41695803,88028.0,88027.0,0.0654137]
[1763679174184,0.36299803,88028.0,88027.0,0.0654137]
[1763679174578,0.00219803,88028.0,88027.0,0.0654137]
[1763679175377,0.02884803,88028.0,88027.0,0.0654137]
[1763679175774,0.00219803,88028.0,88027.0,0.0654137]
[1763679176579,0.06336097,88028.0,88027.0,0.0654137]
[1763679176779,0.00219803,88028.0,88027.0,0.0654137]
[1763679178485,0.06116294,88031.0,88030.0,0.0654134]
[1763679179390,0.06116294,88032.0,88030.0,0.0654134]
[1763679179588,0.06116294,88032.0,88031.0,0.05404]
[1763679179883,0.08781294,88032.0,88031.0,0.05404]
[1763679180074,0.06336097,88032.0,88031.0,0.05404]
[1763679180278,0.00219803,88032.0,88031.0,0.164]
[1763679181992,0.06116294,88035.0,88034.0,0.0654128]
[1763679182589,2.94e-06,88035.0,88034.0,0.0654128]
[1763679182788,0.00017041,88040.0,88039.0,0.0661422]
[1763679185090,0.15510959,88050.0,88049.0,0.05477]
[1763679185283,0.08177255,88051.0,88050.0,0.05477]
[1763679185483,0.02801,88051.0,88050.0,0.05477]
[1763679185793,0.13682255,88051.0,88050.0,0.05477]
[1763679186381,0.14002058,88051.0,88050.0,0.05477]
[1763679187490,0.05505,88050.0,88049.0,0.0113709]
[1763679187694,0.05724803,88050.0,88049.0,0.0113709]
[1763679187886,0.05505,88048.0,88047.0,0.16473]
[1763679188091,0.05724803,88048.0,88047.0,0.16473]
[1763679189194,0.05824803,88048.0,88047.0,0.16473]
[1763679189390,0.05924803,88048.0,88047.0,0.16473]
[1763679192093,0.002,88048.0,88047.0,0.16473]
[1763679194094,0.00017041,88059.0,88058.0,0.0661397]
[1763679194292,0.00017041,88059.0,88058.0,0.1760997]
[1763679195295,0.00217041,88059.0,88058.0,0.1760997]
[1763679196392,0.01896059,88067.0,88066.0,0.0661387]
[1763679196593,0.08177255,88072.0,88071.0,0.0661381]
[1763679196801,0.08177255,88073.0,88072.0,0.05477]
[1763679196990,0.44257255,88078.0,88077.0,0.05477]
[1763679197297,0.3608,88078.0,88077.0,0.05477]
[1763679198101,0.13682255,88084.0,88083.0,0.0661365]
[1763679198295,0.05505,88084.0,88083.0,0.1760565]
[1763679198795,0.07462363,88084.0,88083.0,0.1760565]
[1763679199297,0.01957363,88084.0,88083.0,0.1760565]
[1763679199498,0.001,88084.0,88083.0,0.1760565]
[1763679199888,0.00319803,88084.0,88083.0,0.1760565]
[1763679200084,0.03120803,88084.0,88083.0,0.1760565]
[1763679200603,0.03220803,88084.0,88083.0,0.1760565]
[1763679200805,0.03120803,88084.0,88083.0,0.1760565]
[1763679201511,0.02901,88084.0,88083.0,0.1760565]
[1763679201888,0.05824803,88084.0,88083.0,0.1760565]
[1763679202206,0.05605,88084.0,88083.0,0.1760565]
[1763679202503,0.07538252,88084.0,88083.0,0.1760565]
[1763679202704,0.07758055,88084.0,88083.0,0.1496265]
[1763679202999,0.07758055,88084.0,88083.0,0.1760565]
[1763679203201,0.13859472,88084.0,88083.0,0.1760565]
[1763679203405,0.07758055,88084.0,88083.0,0.1760565]
[1763679205201,0.02253055,88084.0,88083.0,0.1760565]
[1763679205707,0.05054055,88084.0,88083.0,0.1760565]
[1763679206207,0.02253055,88084.0,88083.0,0.1760565]
[1763679207100,0.02033252,88084.0,88083.0,0.1760565]
[1763679207600,0.40147271,88088.0,88087.0,0.05477]
[1763679207804,0.04067271,88094.0,88093.0,0.05477]
[1763679207998,0.09762255,88109.0,88092.0,0.01168]
[1763679207999,0.04067271,88097.0,88096.0,0.05477]
[1763679208199,0.02801,88102.0,88101.0,0.0661342]
[1763679208405,0.05505,88109.0,88108.0,0.0661333]
[1763679208605,0.05724803,88109.0,88108.0,0.0661333]
[1763679209106,0.00219803,88109.0,88108.0,0.0661333]
[1763679209309,0.0769853,88109.0,88108.0,0.0661333]
[1763679209499,0.05724803,88109.0,88108.0,0.0661333]
[1763679210309,0.05417032,88117.0,88116.0,0.0638323]
[1763679210507,0.07529235,88117.0,88116.0,0.0638323]
[1763679211307,0.07529235,88117.0,88116.0,0.0804723]
[1763679212400,0.07529235,88117.0,88116.0,0.0638323]
[1763679213501,0.02129235,88117.0,88116.0,0.0803123]
[1763679213707,0.04829235,88117.0,88116.0,0.0803123]
[1763679214195,0.02129235,88117.0,88116.0,0.0803123]
[1763679214401,0.01909432,88117.0,88116.0,0.0803123]
[1763679214709,0.08670545,88117.0,88116.0,0.0803123]
[1763679214916,0.01909432,88117.0,88116.0,0.0803123]
[1763679215599,0.01909432,88117.0,88116.0,0.4411123]
[1763679216805,0.01909432,88117.0,88116.0,0.4421123]
[1763679217808,4.32e-06,88117.0,88116.0,0.4421123]
[1763679218115,0.00028369,88126.0,88125.0,0.0646811]
[1763679218412,0.02728369,88126.0,88125.0,0.1745611]
[1763679218908,0.05405369,88126.0,88125.0,0.1745611]
[1763679219305,0.05625172,88126.0,88125.0,0.1745611]
[1763679219906,0.07513108,88126.0,88125.0,0.1745611]
[1763679222216,0.02136108,88126.0,88125.0,0.1745611]
[1763679222420,0.07513108,88126.0,88125.0,0.1745611]
[1763679229521,0.11574221,88126.0,88125.0,0.1745611]
[1763679230517,0.11574221,88126.0,88125.0,0.1755611]
[1763679231416,0.07513108,88126.0,88125.0,0.1755611]
[1763679233219,0.07513108,88126.0,88125.0,0.1745611]
[1763679234215,0.07513108,88126.0,88125.0,0.1828011]
[1763679235210,0.07513108,88126.0,88125.0,0.1745611]
[1763679236011,0.07513108,88126.0,88125.0,0.1910411]
[1763679236206,0.02136108,88126.0,88125.0,0.1910411]
[1763679238111,0.07513108,88126.0,88125.0,0.1910411]
[1763679239319,0.07513108,88126.0,88125.0,0.1762605]
[1763679239522,0.07513108,88126.0,88125.0,0.1597805]
[1763679239820,0.07513108,88126.0,88125.0,0.0231905]
[1763679240014,0.15690363,88126.0,88125.0,0.1597005]
[1763679240417,0.07513108,88126.0,88125.0,0.1597005]
[1763679244215,0.07513108,88126.0,88125.0,0.0231905]
[1763679244415,0.07513108,88126.0,88125.0,0.0488405]
[1763679245327,0.07513108,88126.0,88125.0,0.03405976]
[1763679245518,0.07513108,88126.0,88125.0,0.06165976]
[1763679248729,0.00073266,88126.0,88125.0,0.02460779]
[1763679248931,0.05201266,88126.0,88125.0,0.07785779]
[1763679249127,0.05201266,88126.0,88125.0,0.03820779]
[1763679249335,0.07144537,88126.0,88125.0,0.06385779]
[1763679249631,0.07144537,88126.0,88125.0,0.07785779]
[1763679252434,0.07144537,88126.0,88125.0,0.06385779]
[1763679254037,0.07144537,88126.0,88125.0,0.07785779]
[1763679262043,0.04650537,88126.0,88125.0,0.07785779]
[1763679262242,0.02016537,88126.0,88125.0,0.07785779]
[1763679267048,0.04650537,88126.0,88125.0,0.07785779]
[1763679268049,0.02016537,88126.0,88125.0,0.07785779]
[1763679268741,0.04650537,88126.0,88125.0,0.07785779]
[1763679269448,0.07144537,88126.0,88125.0,0.07785779]
[1763679269746,0.04650537,88126.0,88125.0,0.07785779]
[1763679270648,0.04340537,88126.0,88125.0,0.07785779]
[1763679271350,0.06755537,88126.0,88125.0,0.07785779]
[1763679272357,0.02016537,88126.0,88125.0,0.07785779]
[1763679273556,0.04371537,88126.0,88125.0,0.07785779]
[1763679273745,0.06778537,88126.0,88125.0,0.07785779]
[1763679273947,0.02016537,88126.0,88125.0,0.07785779]
[1763679277658,0.04371537,88126.0,88125.0,0.07785779]
[1763679278260,0.02016537,88126.0,88125.0,0.07785779]
[1763679280160,0.04371537,88126.0,88125.0,0.07785779]
[1763679281258,0.06778537,88126.0,88125.0,0.07785779]
[1763679281762,0.06778537,88126.0,88125.0,0.06385779]
[1763679281955,0.06778537,88126.0,88125.0,0.17361779]
[1763679283957,0.06778537,88126.0,88112.0,0.0251028]
[1763679284162,0.06778537,88126.0,88115.0,0.0587024]
[1763679284163,0.04762,88116.0,88115.0,0.0587024]
[1763679284358,0.04762,88116.0,88115.0,0.06090043]
[1763679284359,0.04835266,88116.0,88115.0,0.06090043]
[1763679285460,0.04835266,88116.0,88115.0,0.06190043]
[1763679290363,0.05591266,88116.0,88115.0,0.00319803]
[1763679291569,0.05591266,88116.0,88115.0,0.001]
[1763679293372,0.04762,88101.0,88100.0,0.01153462]
[1763679293570,0.04835266,88101.0,88100.0,0.00017032]
[1763679294465,0.13992998,88101.0,88100.0,0.00017032]
[1763679294669,0.04835266,88101.0,88100.0,0.00101073]
[1763679295075,0.04835266,88101.0,88100.0,0.00201073]
[1763679295374,0.04835266,88101.0,88100.0,0.00101073]
[1763679295573,0.00073266,88101.0,88100.0,1.073e-05]
[1763679296176,0.00073266,88101.0,88090.0,0.0113656]
[1763679296475,0.04762,88089.0,88087.0,0.0113659]
[1763679296667,0.04835266,88089.0,88088.0,0.38355]
[1763679296867,0.04835266,88089.0,88088.0,0.40814]
[1763679297072,0.04835266,88089.0,88088.0,0.41033803]
[1763679297273,0.04835266,88089.0,88088.0,0.04953803]
[1763679297871,0.04835266,88089.0,88088.0,0.02494803]
[1763679298076,0.04835266,88089.0,88088.0,0.00219803]
[1763679298466,0.10950388,88089.0,88088.0,0.00219803]
[1763679298666,0.10950388,88089.0,88088.0,0.02494803]
[1763679299068,0.04835266,88089.0,88088.0,0.04953803]
[1763679299266,0.04762,88081.0,88080.0,0.00017021]
[1763679299469,0.04762,88067.0,88066.0,0.02275]
[1763679299675,0.04762,88059.0,88058.0,0.40814]
[1763679299873,0.04835266,88059.0,88058.0,0.41033803]
[1763679300073,0.04835266,88059.0,88058.0,0.36299803]
[1763679300273,0.08911073,88059.0,88058.0,0.00219803]
[1763679300477,0.04762,88051.0,88050.0,0.51807031]
[1763679300776,0.40915266,88051.0,88050.0,0.00017031]
[1763679301376,0.40915266,88051.0,88050.0,0.04751031]
[1763679301875,0.40915266,88051.0,88050.0,0.00117031]
[1763679302075,0.04662,88047.0,88034.0,0.0113727]
[1763679302277,0.04735266,88047.0,88034.0,0.0113727]
[1763679303172,0.04735266,88047.0,88038.0,0.00017031]
[1763679303673,0.04735266,88047.0,88046.0,0.00128394]
[1763679304069,0.04735266,88047.0,88046.0,0.05044394]
[1763679304269,0.04735266,88047.0,88046.0,0.05164197]
[1763679304774,0.04735266,88047.0,88046.0,0.06646197]
[1763679304977,0.00073266,88047.0,88046.0,0.06646197]
[1763679305283,0.00073266,88047.0,88046.0,0.06546197]
[1763679306172,0.3608,88057.0,88056.0,0.06053]
[1763679306173,0.38346,88057.0,88056.0,0.06053]
[1763679306479,0.38419266,88057.0,88056.0,0.06272803]
[1763679307069,0.36153266,88057.0,88056.0,0.06272803]
[1763679307269,0.00073266,88057.0,88056.0,0.06272803]
[1763679308284,0.01968672,88059.0,88058.0,0.04916]
[1763679308475,0.09151661,88072.0,88066.0,0.04916]
[1763679308670,0.00090297,88067.0,88066.0,0.05135803]
[1763679308871,0.00090297,88067.0,88066.0,0.06272673]
[1763679309070,0.3608,88074.0,88073.0,0.0605278]